Cogmind - Beta 11 X2 *** ADVENTURER MODE // 2021.02.28 @ 08:04:08 Player: Luigi Panache Result: Destroyed self with Mini Grenade Launcher Performance ------------- Evolutions (0) 0 Regions Visited (4) 800 Robots Destroyed (41) 205 Value Destroyed (661) 661 Prototype IDs (0) 0 Alien Tech Used (0) 0 Bonus (-130) -130 TOTAL SCORE: 1536 Bonus ------- Friendly Fire -130 Cogmind --------- Core Integrity 0/250 Matter 199/300 Energy 70/100 System Corruption 1% Temperature Cool (0) Movement Rolling (200) Ox8 Location -9/Mines Parts ------- > --- POWER (1) -------- (None) > --- PROPULSION (2) --- Wheel > --- UTILITY (2) ------ Huge Storage Unit > --- WEAPON (2) ------- Mini Grenade Launcher Mini Grenade Launcher > --- INVENTORY (25) --- Light Ion Engine Light Ion Engine Nuclear Core Nuclear Core Fission Core Wheel Wheel Wheel Wheel Small Storage Unit High-capacity Storage Unit High-capacity Matter Pod (200) EM Shotgun EM Shotgun EM Shotgun EM Shotgun Autogun Autogun Autogun Mini Grenade Launcher Mini Grenade Launcher Peak State ------------ > --- POWER ------------ Ion Engine > --- PROPULSION ------- Wheel Compact Wheel > --- UTILITY ---------- High-capacity Storage Unit Huge Storage Unit > --- WEAPON ----------- Autogun Autogun > --- INVENTORY -------- Light Ion Engine Light Ion Engine Light Treads Light Treads Light Treads Light Treads Aluminum Leg Aluminum Leg Small Storage Unit EM Pulse Gun EM Pulse Gun EM Shotgun EM Shotgun EM Shotgun EM Shotgun Autogun Improved Light Cannon Improved Light Cannon Improved Light Cannon Improved Light Cannon Grenade Launcher Mini Grenade Launcher Mini Grenade Launcher Mini Grenade Launcher Mini Grenade Launcher [Rating: 12] Favorites ----------- Power Ion Engine Engine Ion Engine Propulsion Compact Wheel Treads Light Treads Leg Aluminum Leg Wheel Compact Wheel Utility Huge Storage Unit Storage Huge Storage Unit Weapon Autogun Energy Gun Medium Laser Ballistic Gun Autogun Launcher Grenade Launcher Build | -11 -10 -10 -10 -9 ------- Run | Scr Mat Min Exi Min Slots Evolved . | . . . . . Power . | . . . . . Propulsion . | . . . . . Utility . | . . . . . Weapon . | . . . . . Parts Attached 23 | 2 13 3 . 5 Power 2 | . 2 . . . Engine 2 | . 2 . . . Core . | . . . . . Reactor . | . . . . . Propulsion 13 | 2 6 3 . 2 Treads 2 | . 2 . . . Leg . | . . . . . Wheel 11 | 2 4 3 . 2 Hover . | . . . . . Flight . | . . . . . Utility 2 | . 2 . . . Device . | . . . . . Storage 2 | . 2 . . . Processor . | . . . . . Hackware . | . . . . . Protection . | . . . . . Artifact . | . . . . . Weapon 6 | . 3 . . 3 Energy Gun 1 | . 1 . . . Energy Cannon . | . . . . . Ballistic Gun 2 | . 2 . . . Ballistic Cannon . | . . . . . Launcher 3 | . . . . 3 Special Weapon . | . . . . . Impact Weapon . | . . . . . Slashing Weapon . | . . . . . Piercing Weapon . | . . . . . Special Melee Weapon . | . . . . . Unidentified Prototypes . | . . . . . Parts Lost 7 | . 1 . . 6 Power 2 | . 1 . . 1 Propulsion 3 | . . . . 3 Utility . | . . . . . Weapon 2 | . . . . 2 Highest Loss Streak 6 | . 1 . . 6 Average Slot Usage (%) 88 | . 95 85 85 84 Engine 13 | . 13 14 14 14 Wheel 26 | . 25 28 28 27 Storage 17 | . 24 14 14 14 Energy Gun 2 | . 8 . . . Ballistic Gun 24 | . 19 28 28 26 Naked Turns . | . . . . . Heaviest Build 131 | 11 131 91 91 91 Greatest Support 40 | 26 40 32 32 32 Greatest Overweight (x) 6 | . 6 4 2 4 Average Overweight (x) 3 | . 3 3 2 2 Largest Inventory Capacity 25 | 8 25 25 25 25 Average Capacity 24 | 8 23 25 25 25 Most Carried 25 | 6 25 25 25 25 Average Carried 21 | 6 16 24 24 24 Final Capacity 25 | 8 25 25 25 25 Final Carried 25 | 6 24 25 25 21 Class Distribution -------------------- 100% | Mutant Dominant Class ---------------- Mutant | -10/Materials Mutant | -10/Mines Mutant | -10/Exiles Mutant | -9/Mines Resources | -11 -10 -10 -10 -9 ----------- Run | Scr Mat Min Exi Min Matter Collected 822 | 220 278 207 10 107 Remotely . | . . . . . Salvage Created 1318 | . 773 343 . 202 Parts 96 | . 66 20 . 10 Haulers Intercepted 2 | . 2 . . . Recyclers Shooed 2 | . 1 . . 1 Parts Field Recycled . | . . . . . Retrieved Matter . | . . . . . Parts Self-Destructed . | . . . . . Prevented . | . . . . . Kills | -11 -10 -10 -10 -9 ------- Run | Scr Mat Min Exi Min Combat Hostiles Destroyed 25 | . 12 4 . 9 Guns 18 | . 11 4 . 3 AOE 7 | . 1 . . 6 Classes Destroyed 9 | . 7 1 . 1 Worker 10 | . 7 3 . . Builder 2 | . 1 1 . . Tunneler 1 | . . 1 . . Hauler 2 | . 2 . . . Recycler 3 | . 2 1 . . Watcher 3 | . 3 . . . Swarmer 6 | . 6 . . . Grunt 13 | . 6 4 . 3 Assembled 6 | . . . . 6 Thug 1 | . . . . 1 Best Kill Streak 6 | . 5 2 . 6 Combat Bots Only 6 | . 3 2 . 6 Max Kills in Single Turn 3 | . 2 1 . 3 Gunslinging . | . . . . . Exploded 3 | . 1 . . 3 Melee . | . . . . . Uniques/NPCs Destroyed . | . . . . . Combat | -11 -10 -10 -10 -9 -------- Run | Scr Mat Min Exi Min Damage Taken 1032 | . 352 88 . 592 Core 277 | . 79 14 . 184 Absorbed by Shields . | . . . . . Core Remaining (%) 100 | 100 . . . . Volleys Fired 95 | . 55 19 . 21 Largest 2 | . 2 2 . 2 Hottest 70 | . 70 46 . 60 Shots Fired 189 | . 110 38 . 41 Gun 185 | . 110 38 . 37 Cannon . | . . . . . Launcher 4 | . . . . 4 Special . | . . . . . Kinetic 148 | . 73 38 . 37 Thermal 26 | . 26 . . . Explosive 4 | . . . . 4 Electromagnetic 11 | . 11 . . . Robot Hit Streak 21 | . 21 11 . 14 Robot Miss Streak 2 | . 2 1 . 2 Penetration Max . | . . . . . Secondary Targets 5 | . 4 1 . . Max Gunslinging Chain 1 | . 1 1 . . Shots Hit Robots 141 | . 79 29 . 33 Core Hits 73 | . 34 13 . 26 Critical Hits 1 | . . 1 . . Critical Kills 1 | . . 1 . . Critical Parts Destroyed . | . . . . . Melee Attacks . | . . . . . Impact . | . . . . . Slashing . | . . . . . Piercing . | . . . . . Sneak Attacks . | . . . . . Combat Hostiles . | . . . . . Follow-up Attacks . | . . . . . Damage Inflicted 2400 | . 1022 432 . 946 Guns 1762 | . 911 432 . 419 Cannons . | . . . . . Explosions 617 | . 109 . . 508 Melee . | . . . . . Ramming 21 | . 2 . . 19 Kinetic 1332 | . 481 432 . 419 Thermal 441 | . 441 . . . Explosive 508 | . . . . 508 Electromagnetic 98 | . 98 . . . Impact . | . . . . . Slashing . | . . . . . Piercing . | . . . . . Highest Corruption 1 | . . . . 1 Average Corruption 1 | . . . . 1 Corruption Purged . | . . . . . Overload Shots . | . . . . . Overflow Damage 12 | . . . . 12 Projectiles . | . . . . . Explosions 12 | . . . . 12 Melee . | . . . . . Knockbacks . | . . . . . Impact . | . . . . . Kinetic . | . . . . . Secondary . | . . . . . Self-Inflicted Damage 100 | . . . . 100 Shots 3 | . . . . 3 Rammed 1 | . . . . 1 Targets Rammed 2 | . 1 . . 1 Kicked . | . . . . . Crushed 1 | . 1 . . . Highest Temperature 160 | . 160 43 . 56 Average Temperature 32 | . 43 12 . 19 Received Heat Transfer 350 | . 120 66 . 164 Siege Activations . | . . . . . Robots Corrupted . | . . . . . Combat Hostiles . | . . . . . Parts Fried 1 | . 1 . . . Impact Corruptions . | . . . . . Robots Melted . | . . . . . Combat Hostiles . | . . . . . Parts Melted . | . . . . . Heat Transferred 975 | . 975 . . . Parts Sabotaged . | . . . . . Parts Stolen . | . . . . . Parts Stripped . | . . . . . Power Chain Reactions 1 | . 1 . . . Missiles Intercepted . | . . . . . Alert | -11 -10 -10 -10 -9 ------- Run | Scr Mat Min Exi Min Peak Influence 299 | . 299 133 . 115 Initial 13 | . . 13 . . Average 74 | . 130 42 . 27 Maximum Alert Level 1 | . 1 . . . Low Security (%) 92 | 100 80 100 . 100 Level 1 7 | . 19 . . . Level 2 . | . . . . . Level 3 . | . . . . . Level 4 . | . . . . . Level 5 . | . . . . . High Security . | . . . . . Max Security . | . . . . . Squads Dispatched 1 | . 1 . . . Investigation 1 | . 1 . . . Extermination . | . . . . . Reinforcement . | . . . . . Assault . | . . . . . Garrison . | . . . . . Intercept . | . . . . . Construction Impeded . | . . . . . Haulers Reinforced . | . . . . . Stealth | -11 -10 -10 -10 -9 --------- Run | Scr Mat Min Exi Min Distress Signals 1 | . 1 . . . Communications Jammed . | . . . . . Distress Signals . | . . . . . Times Spotted 49 | . 19 4 . 26 Peak Tracking Total 18 | . 5 2 . 18 Tactical Retreats 1 | . . . . 1 Traps | -11 -10 -10 -10 -9 ------- Run | Scr Mat Min Exi Min Traps Triggered 1 | . 1 . . . Indirectly . | . . . . . Trap Hack Attempts . | . . . . . Triggered . | . . . . . Disarmed . | . . . . . Reprogrammed . | . . . . . Reused . | . . . . . Traps Extracted . | . . . . . Installed . | . . . . . Triggered . | . . . . . Machines | -11 -10 -10 -10 -9 ---------- Run | Scr Mat Min Exi Min Machines Disabled 1 | . 1 . . . Max in Single Turn 1 | . 1 . . . Machines Sabotaged . | . . . . . Garrisons Compromised . | . . . . . Overloaded Fab Kills . | . . . . . Fab Network Shutdowns . | . . . . . Hacking | -11 -10 -10 -10 -9 --------- Run | Scr Mat Min Exi Min Machines Accessed 6 | . 4 . 1 1 Terminals 5 | . 4 . . 1 Fabricators . | . . . . . Repair Stations . | . . . . . Recycling Units . | . . . . . Scanalyzers . | . . . . . Garrison Access . | . . . . . Total Hacks 18 | . 15 . 1 2 Successful 11 | . 9 . 1 1 Failed 7 | . 6 . . 1 Catastrophic 1 | . 1 . . . Database Lockouts . | . . . . . Manual 11 | . 11 . . . Terminals 17 | . 15 . . 2 Fabricators . | . . . . . Repair Stations . | . . . . . Recycling Units . | . . . . . Scanalyzers . | . . . . . Garrison Access . | . . . . . Terminal Hacks 10 | . 8 . 1 1 Record 1 | . . . 1 . Part Schematic 2 | . 2 . . . Robot Analysis 2 | . 2 . . . Patrol Status 1 | . 1 . . . Hauler Manifests 1 | . 1 . . . Zone Layout 3 | . 2 . . 1 Fabricator Hacks . | . . . . . Repair Station Hacks . | . . . . . Recycling Unit Hacks . | . . . . . Scanalyzer . | . . . . . Garrison Access Hacks . | . . . . . Unauthorized Hacks 1 | . 1 . . . Terminals 1 | . 1 . . . Botnet 1 | . 1 . . . Fabricators . | . . . . . Repair Stations . | . . . . . Recycling Units . | . . . . . Scanalyzers . | . . . . . Garrison Access . | . . . . . Data Cores Recovered . | . . . . . Used . | . . . . . Hacking Detections 5 | . 4 . . 1 Full Trace Events . | . . . . . Feedback Events . | . . . . . Feedback Blocked . | . . . . . Robot Schematics Acquired . | . . . . . Robots Built . | . . . . . Matter . | . . . . . Time . | . . . . . Total Robot Build Rating . | . . . . . Part Schematics Acquired 2 | . 2 . . . Parts Built . | . . . . . Matter . | . . . . . Time . | . . . . . Total Part Build Rating . | . . . . . Parts Repaired . | . . . . . Time . | . . . . . Parts Recycled . | . . . . . Recycled Matter . | . . . . . Retrieved Matter . | . . . . . Retrieved Components . | . . . . . Parts Scanalyzed . | . . . . . Part Schematics Acquired . | . . . . . Parts Damaged . | . . . . . Bothacking | -11 -10 -10 -10 -9 ------------ Run | Scr Mat Min Exi Min Used RIF Installer . | . . . . . Robots Hacked . | . . . . . Non-combat . | . . . . . Combat . | . . . . . Robot Hacks Applied . | . . . . . Relay Couplers Released . | . . . . . Robots Rewired . | . . . . . Allies Hacked . | . . . . . Hacks Repelled . | . . . . . Allies | -11 -10 -10 -10 -9 -------- Run | Scr Mat Min Exi Min Total Allies 2 | . . . . 2 Largest Group 2 | . . . . 2 Highest-Rated Group 46 | . . . . 46 Highest-Rated Ally 31 | . . . . 31 Total Orders . | . . . . . Ally Attacks 4 | . . . . 4 Total Damage 42 | . . . . 42 Kills 1 | . . . . 1 Allies Corrupted . | . . . . . Allies Melted . | . . . . . Intel | -11 -10 -10 -10 -9 ------- Run | Scr Mat Min Exi Min Robot Analysis Total 2 | . 2 . . . Derelict Logs Recovered 2 | . . 2 . . Drone Launches . | . . . . . Drone Recoveries . | . . . . . Exploration | -11 -10 -10 -10 -9 ------------- Run | Scr Mat Min Exi Min Turns Passed 2532 | 8 902 901 248 473 Spaces Moved 1564 | 5 457 603 187 312 Core . | . . . . . Treads 22 | . 22 . . . Legs 2 | 2 . . . . Wheels 1540 | 3 435 603 187 312 Hover . | . . . . . Flight . | . . . . . Fastest Speed 90 | 90 90 130 130 130 Average Speed 138 | 102 151 136 130 130 Slowest Speed 260 | 120 260 140 130 140 Overloaded Moves . | . . . . . Propulsion Burnouts . | . . . . . Robots Hopped . | . . . . . Cave-ins Triggered . | . . . . . Exploration Rate (%) 59 | 2 77 96 53 67 Regions Visited 4 Branch Regions 3 Pre-discovered Areas 2 | . . 1 1 . Known Exits Taken . | . . . . . Unknown Exits Taken 4 | 1 1 1 1 . Scrap Searched 3 | . . 1 . 2 Spaces Dug . | . . . . . Terrain Destroyed 31 | . 2 . . 29 Melee . | . . . . . Projectile . | . . . . . AOE 31 | . 2 . . 29 Terrain Rammed . | . . . . . Walls Destroyed . | . . . . . Machines Disabled . | . . . . . Actions | -11 -10 -10 -10 -9 --------- Run | Scr Mat Min Exi Min Total 1771 | 6 570 655 194 346 Wait 32 | . 9 16 . 7 Move 1560 | 4 456 602 186 312 Hop . | . . . . . Pick Up 33 | . 22 7 4 . Fast Attach 7 | . 5 2 . . Attach 4 | . . . . 4 Detach 2 | . 2 . . . Swap 12 | 2 8 1 . 1 Drop 24 | . 12 8 4 . Fire 95 | . 55 19 . 21 Melee . | . . . . . Ram 1 | . . . . 1 Kick . | . . . . . Crush 1 | . 1 . . . Escape Stasis . | . . . . . Rewire . | . . . . . Trap . | . . . . . Miscellaneous . | . . . . . Route ------- -11/Scrapyard -10/Materials (discovered 4 exits: [*Mat x3] / [*Min]) -10/Mines (discovered 3 exits: [*Mat x2] / *Exi) -10/Exiles -9/Mines (discovered 1 exit: [*Mat]) History --------- Turn | Location | Event 1 | -11/Scrapyard | Discovered new exit (range 2) 9 | -11/Scrapyard | Entered Materials 280 | -10/Materials | Discovered new exit (range 16) 316 | -10/Materials | Build established: Mutant 565 | -10/Materials | Discovered new exit (range 3) 665 | -10/Materials | Discovered new exit (range 13) 897 | -10/Materials | Discovered new exit (range 11) 911 | -10/Materials | Entered Mines 1130 | -10/Mines | Learned location of Zion (-7) 1130 | -10/Mines | Discovered new exit (range 11) 1358 | -10/Mines | Discovered new exit (range 13) 1805 | -10/Mines | Deemed a non-threat by the Exiles lab entrance 1807 | -10/Mines | Discovered new exit (range 5) 1812 | -10/Mines | Entered Exiles 1858 | -10/Exiles | Met 8R-AWN 1876 | -10/Exiles | Met EX-HEX 1941 | -10/Exiles | Met EX-DEC 2050 | -10/Exiles | Discovered new exit (range 10) 2060 | -10/Exiles | Entered Mines 2098 | -9/Mines | Discovered new exit (range 13) 2367 | -9/Mines | Core integrity fell below 50% 2501 | -9/Mines | Assembled infested the area 2506 | -9/Mines | Assisted by a Guerilla fighting off Assembled 2526 | -9/Mines | Core integrity fell below 20% 2533 | -9/Mines | Destroyed self with Mini Grenade Launcher Last Messages --------------- 02515_ Destroyed Asb. F-torch. 02517_ BY-BXN(z) destroyed. 02518_ Destroyed Asb. F-torch. 02518_ as-01954 destroyed. 02518_ PO-OBB(g) destroyed. 02520_ as-88925 destroyed. 02520_ as-14859 destroyed. 02520_ as-44850 destroyed. 02521_ Autogun destroyed. 02522_ Com. Wheel destroyed. 02523_ Knocked back. 02525_ Grenade Launcher destroyed. 02526_ Seismic Survey Station disabled. 02527_ as-93057 shuts down. 02531_ Wheel destroyed. 02531_ Ion Engine destroyed. 02531_ System corrupted by crushing effect (+1). 02533_ as-29775 destroyed. 02533_ as-19314 destroyed. 02533_ as-11054 destroyed. Map ----- +----------------------------------------------------+ | #??## ## ##???????????????# #???? | | #???###### ##????????????????###############???? | | #????????# #???????????????????????????????????? | | #????????# ##??????????????????????????????????? | | #???????## #??????????????????????????????????? | | #???????# ##?????????????????????????????????? | | ##???????# ##????????????????????????????????? | | ?????????# ##???????????????????????????????? | | ????????## ##??????????????????????????????? | | ???????## #??????????????????????????????? | | ###???## #??????????????????????????????? | | ##??# ##??????????????????????????????? | | ##### ### ##??????????????????????????????? | | ####??## #??????????????????????????????? | | ###????# #??????????????????????????????? | | ###### #????#####??????????????????????????????? | | ?????### #???????????????????????????????????????? | | ???????# #???????####????????????????????????????? | | ???????# #?????### ##??????###?##?#???##????????? | | ???????# #????## #????### ## # ## #????????? | | ???????# #???## #????# ##???????? | | ???????# #??## ##???# =%!! ????? | | ???????# #?## ###### ![%aaa % % ????? | | ???????# #?# ## * ## ###???????? | | ???????# ### ## # a ##??##?????????? | | ???????# #### @ ##????????????? | | ???????# #??# % a #####????????? | | ???????##### #??# a ????? | | ???????????## ## ????? | | ????????????# " " ## ## ????? | | ????????????# "" ##??#?????????? | | ????????????## """ ##?????????????? | | ?????????????## ##??????????????? | | ??????????????# ##### #???????????????? | | ??????????????## ##???#### ???????????????? | | ???????????????####???????### ###??????????????? | | ?????????????????????????????####????????????????? | | ?????????????????????????????????????????????????? | | ?????????????????????????????????????????????????? | | | | | | | | | | | | | | | | | | | | | | | +----------------------------------------------------+ Best States ------------- Heat Dissipation 25 Energy Generation 10 Energy Capacity 250 Matter Stores 300 Matter Capacity 300 Sight Range 16 Terrain Scan Density 10 Resistance: KI 20 Resistance: TH 20 Resistance: EX 20 Resistance: EM 20 Resistance: I 20 Resistance: S 20 Resistance: P 20 Evasion (%) 42 Recoil Reduction 2 Offensive Hacking 10 Item Schematics ----------------- Wheel | -10/Materials | Hacked Huge Storage Unit | -10/Materials | Hacked Robot Schematics ------------------ None Fabricated ------------ Nothing Alien Tech Used ----------------- None Achievements -------------- None Challenges ------------ None Game ------ Seed PropulsionControlSource Manual? 0 Play Time 00:17:44 Cumulative 286.8 hours Start 2021.02.28 @ 07:43:03 End 2021.02.28 @ 08:04:08 Sessions 1 Manual Loads 0 Difficulty Adventurer Special Mode None Game No. 286 Rogue 132 Adventurer 76 Explorer 78 Win Type - Total 22 Types 16/0/4/2/0/0/0/0/0 Lore% 78 Gallery% 86 Achievement% 67 Wizard Run 0 Options --------- ASCII 0 Keyboard 0 Movement Numpad Keybinds 0 Fullscreen 2 Font 18/TerminusBold Map View 76x50 Tactical HUD 1 Map Filters NONE Filters NONE Steam 1 RUN: 780d6ae2-8838-4156-85a0-2075a45c1c01